bitfinex/quotes_SOLUSD_20260224
["timestamp","ask_amount","ask_price","bid_price","bid_amount"]
[1771911787619,0.47488238,76.529,76.508,0.49175176]
[1771911788630,13.06625899,76.533,76.508,0.49175176]
[1771911788829,13.06524784,76.539,76.51,5.25873557]
[1771911789039,0.28432314,76.549,76.511,0.49175176]
[1771911789236,0.47488238,76.546,76.512,0.49175176]
[1771911790134,0.47488238,76.56,76.512,0.49175176]
[1771911790435,0.47488238,76.549,76.512,0.49175176]
[1771911791136,13.06352793,76.549,76.522,13.06813726]
[1771911791323,13.06352793,76.549,76.523,0.49175176]
[1771911791640,5.25873557,76.55,76.523,0.49175176]
[1771911791834,13.0629155,76.553,76.523,0.49175176]
[1771911793023,13.06205804,76.558,76.523,0.49175176]
[1771911793239,0.47488238,76.562,76.525,0.49175176]
[1771911793240,13.53620136,76.562,76.525,0.49175176]
[1771911793427,13.06131898,76.562,76.531,0.49175176]
[1771911794923,5.25873557,76.56,76.531,0.49175176]
[1771911795124,0.47488238,76.559,76.526,0.49175176]
[1771911795340,5.25873557,76.56,76.526,0.49175176]
[1771911795341,0.47488238,76.557,76.526,0.49175176]
[1771911796041,0.47488238,76.557,76.487,3.69383402]
[1771911796042,0.47488238,76.557,76.528,0.49175176]
[1771911797245,0.47488238,76.555,76.528,0.49175176]
[1771911797446,45.71816708,76.556,76.528,0.49175176]
[1771911797447,13.06233345,76.556,76.528,0.49175176]
[1771911800147,0.46407855,76.555,76.528,0.49175176]
[1771911800739,0.46407855,76.549,76.523,0.45402937]
[1771911801355,13.06233345,76.556,76.49,37.94259793]
[1771911801356,0.46407855,76.538,76.49,37.94259793]
[1771911801945,0.46407855,76.536,76.491,13.07343347]
[1771911802565,0.48297052,76.529,76.491,13.07343347]
[1771911802856,0.48297052,76.529,76.491,45.75701715]
[1771911803358,0.48297052,76.529,76.492,0.49811759]
[1771911804269,13.06711269,76.528,76.501,0.49811759]
[1771911807656,0.48297052,76.535,76.5,5.25873557]
[1771911807657,0.48297052,76.533,76.503,0.49811759]
[1771911808766,0.48297052,76.544,76.511,0.49811759]
[1771911809962,5.25873557,76.53,76.5,0.49811759]
[1771911810262,0.48297052,76.53,76.501,0.49811759]
[1771911810845,0.48297052,76.539,76.501,0.49811759]
[1771911811367,0.48297052,76.545,76.511,0.49811759]
[1771911812253,0.48297052,76.545,76.512,13.06984525]
[1771911812456,0.48297052,76.545,76.513,0.49811759]
[1771911812764,13.06438127,76.544,76.513,0.49811759]
[1771911812969,0.48297052,76.543,76.513,0.49811759]
[1771911815554,0.48297052,76.543,76.515,0.49811759]
[1771911818647,0.42793452,76.543,76.516,0.49811759]
[1771911821069,0.48297052,76.541,76.518,0.49811759]
[1771911823271,0.48297052,76.541,76.52,0.49811759]
[1771911823577,13.06454893,76.544,76.521,0.49811759]
[1771911824360,0.48297052,76.544,76.521,0.49811759]
[1771911824679,0.48297052,76.539,76.511,0.49811759]
[1771911826279,0.48297052,76.537,76.513,0.49811759]
[1771911830373,0.4832129,76.535,76.513,0.49811759]
[1771911830983,0.4832129,76.535,76.514,0.46877435]
[1771911838892,0.4832129,76.535,76.515,13.06933281]
[1771911839089,0.4832129,76.535,76.516,0.46877435]
[1771911839497,0.4832129,76.545,76.516,0.46877435]
[1771911839793,13.54671235,76.55,76.521,0.46877435]
[1771911840177,0.4832129,76.549,76.521,0.46877435]
[1771911840990,0.4832129,76.549,76.523,0.46877435]
[1771911841195,0.4832129,76.555,76.523,0.46877435]
[1771911841488,0.4832129,76.555,76.531,0.46877435]
[1771911842075,0.4832129,76.56,76.533,0.46877435]
[1771911842280,0.4832129,76.566,76.541,0.46877435]
[1771911844187,0.4832129,76.566,76.542,13.06472263]
[1771911844384,0.4832129,76.566,76.543,0.46877435]
[1771911844900,0.4832129,76.571,76.543,0.46877435]
[1771911846089,0.4832129,76.576,76.55,5.25403139]
[1771911846276,0.4832129,76.576,76.551,0.46877435]
[1771911846481,0.4832129,76.576,76.553,0.46877435]
[1771911847693,0.4832129,76.576,76.555,0.46877435]
[1771911848004,0.4832129,76.574,76.555,0.46877435]
[1771911848300,0.4832129,76.574,76.549,0.46877435]
[1771911849986,0.4832129,76.574,76.55,13.06335728]
[1771911850784,0.4832129,76.574,76.55,13.53213163]
[1771911851186,0.4832129,76.574,76.551,0.46877435]
[1771911852108,0.4832129,76.574,76.553,0.46877435]
[1771911852808,13.05878835,76.577,76.553,0.46877435]
[1771911855186,0.4832129,76.579,76.553,0.46877435]
[1771911855389,13.54173012,76.579,76.555,0.46877435]
[1771911855805,0.4832129,76.584,76.555,0.46877435]
[1771911855988,13.05653479,76.59,76.554,13.06267471]
[1771911855989,13.53974769,76.59,76.561,0.46877435]
[1771911856389,0.4832129,76.59,76.561,0.46877435]
[1771911857289,0.4832129,76.59,76.563,0.46877435]
[1771911859408,0.4832129,76.59,76.565,0.45942475]
[1771911859703,0.46079762,76.595,76.571,0.45942475]
[1771911861515,0.46079762,76.594,76.571,13.5191731]
[1771911862201,0.46079762,76.594,76.571,0.45942475]
[1771911862588,0.46079762,76.594,76.561,13.06148038]
[1771911862793,0.46657919,76.589,76.561,13.53974367]
[1771911862995,0.46657919,76.589,76.562,0.47826329]
[1771911863595,0.46657919,76.589,76.564,0.47826329]
[1771911865108,0.46657919,76.588,76.554,0.47826329]
[1771911866817,0.46657919,76.586,76.556,0.47826329]
[1771911870093,5.25403139,76.59,76.558,0.47826329]
[1771911870094,0.46657919,76.584,76.558,0.47826329]
[1771911871329,0.46657919,76.584,76.55,5.25403139]
[1771911871330,13.05772821,76.583,76.56,0.47826329]
[1771911871519,0.46657919,76.582,76.56,0.47826329]
[1771911877620,0.46657919,76.582,76.562,0.47826329]
[1771911878137,0.46657919,76.58,76.562,0.47826329]
[1771911879001,13.05806923,76.581,76.562,0.47826329]
[1771911880119,13.52409826,76.585,76.562,0.47826329]
[1771911880326,0.46657919,76.588,76.564,0.47826329]
[1771911881413,0.46657919,76.598,76.564,0.47826329]
[1771911881925,0.46657919,76.598,76.571,0.47826329]
[1771911882425,0.46657919,76.596,76.573,0.47826329]
[1771911884243,0.46657919,76.596,76.575,0.47826329]
[1771911884428,0.46657919,76.595,76.575,0.47826329]
[1771911886131,13.05554745,76.596,76.575,0.47826329]
[1771911887026,0.46657919,76.595,76.575,0.47826329]
[1771911888311,0.45266072,76.593,76.562,0.49493949]
[1771911893730,0.45266072,76.593,76.556,32.65559292]
[1771911893731,0.45266072,76.589,76.564,0.49493949]
[1771911898237,0.45266072,76.589,76.565,13.06079801]
[1771911898436,0.45266072,76.579,76.548,0.49493949]
[1771911901139,0.45266072,76.559,76.532,0.49493949]
[1771911901529,5.24802432,76.57,76.541,0.49493949]
[1771911902425,5.24802432,76.56,76.541,0.49493949]
[1771911902751,0.45266072,76.559,76.52,5.24802432]
[1771911902948,5.24802432,76.54,76.51,5.24802432]
[1771911903242,0.45266072,76.544,76.51,5.24802432]
[1771911903826,0.45266072,76.544,76.511,0.28432314]
[1771911904142,0.45266072,76.544,76.51,5.24802432]
[1771911904542,0.45266072,76.539,76.51,5.24802432]
[1771911904743,0.45266072,76.539,76.504,0.49493949]
[1771911905247,4.18450478,76.55,76.522,0.06351954]
[1771911905432,0.40243975,76.598,76.546,0.39999999]
[1771911905637,0.40243975,76.598,76.571,0.39999999]
[1771911906157,0.40243975,76.598,76.57,5.24802432]
[1771911907548,0.45266072,76.597,76.571,13.05977458]
[1771911909230,0.2,76.6,76.58,5.24802432]
[1771911909435,0.2,76.6,76.571,13.05977458]
[1771911909436,0.40243975,76.609,76.59,5.24802432]
[1771911909637,0.40243975,76.609,76.591,0.39999999]
[1771911910542,0.00243976,76.609,76.6,5.24802432]
[1771911911163,0.00243976,76.609,76.601,13.05465986]
[1771911911452,0.2,76.62,76.601,13.05465986]
[1771911912835,0.2,76.62,76.601,45.69130951]
[1771911913853,0.5,76.619,76.596,13.05536404]
[1771911915443,0.5,76.619,76.591,13.05636432]
[1771911919056,0.5,76.619,76.591,45.69727513]
[1771911920041,0.2,76.62,76.6,5.24802432]
[1771911920532,0.7,76.62,76.6,5.24802432]
[1771911920735,0.5,76.619,76.591,13.05636432]
[1771911922256,0.5,76.619,76.591,45.69727513]
[1771911924062,0.2,76.62,76.591,45.69727513]
[1771911924742,0.7,76.62,76.591,45.69727513]
[1771911925138,0.5,76.619,76.591,13.05636432]
[1771911925756,5.24802432,76.61,76.571,32.64921853]
[1771911926048,5.24802432,76.61,76.57,5.24802432]
[1771911926049,0.5,76.599,76.57,5.24802432]
[1771911926249,0.5,76.612,76.58,5.24802432]
[1771911928147,0.5,76.612,76.581,13.05806923]
[1771911929564,0.5,76.612,76.581,45.70324231]
[1771911930370,0.5,76.612,76.59,5.24802432]
[1771911930553,0.5,76.619,76.59,5.24802432]
[1771911930955,0.5,76.619,76.582,0.28432314]
[1771911931563,0.5,76.618,76.583,13.05772821]
[1771911932971,0.5,76.609,76.583,13.05772821]
[1771911933844,0.5,76.609,76.58,5.24802432]
[1771911936956,0.5,76.609,76.581,45.70324231]
[1771911937362,0.5,76.619,76.59,5.24802432]
[1771911937560,0.5,76.618,76.581,45.70324231]
[1771911938472,13.05193364,76.617,76.581,45.70324231]
[1771911938676,0.5,76.616,76.581,45.70324231]
[1771911940666,0.5,76.616,76.59,5.24802432]
[1771911941270,0.5,76.616,76.59,5.24380315]
[1771911942260,13.05227435,76.615,76.59,5.24380315]
[1771911942490,0.5,76.614,76.581,13.05806923]
[1771911945087,0.5,76.612,76.581,13.05806923]
[1771911947080,0.5,76.609,76.581,13.05806923]
[1771911948583,0.5,76.609,76.581,45.70324231]
[1771911950384,0.5,76.607,76.57,5.24380315]
[1771911951869,0.5,76.607,76.58,5.24380315]
[1771911952470,0.5,76.605,76.58,5.24380315]
[1771911953194,0.5,76.619,76.59,5.24380315]
[1771911953577,0.5,76.618,76.59,5.24380315]
[1771911953775,0.5,76.618,76.58,5.24380315]
[1771911954482,13.05193364,76.617,76.581,13.05806923]
[1771911954682,0.5,76.616,76.581,13.05806923]
[1771911955085,0.5,76.616,76.581,45.70324231]
[1771911957086,0.5,76.614,76.581,45.70324231]
[1771911957290,0.5,76.614,76.581,13.05806923]
[1771911960769,5.44380315,76.62,76.527,52.26891838]
[1771911960770,5.24380315,76.59,76.527,52.26891838]
[1771911960969,0.5,76.589,76.54,5.24380315]
[1771911961185,0.5,76.579,76.54,5.24380315]
[1771911961378,0.5,76.569,76.53,18.31057435]
[1771911962074,0.5,76.569,76.53,50.97750235]
[1771911962581,0.5,76.567,76.53,50.97750235]
[1771911965999,0.5,76.559,76.53,18.31057435]
[1771911966300,0.5,76.559,76.53,13.0667712]
[1771911967205,0.5,76.549,76.521,32.67049539]
[1771911967376,0.5,76.549,76.522,13.06813726]
[1771911968201,0.5,76.539,76.503,32.67816845]
[1771911968395,0.5,76.529,76.504,13.07121196]
[1771911969579,0.5,76.529,76.5,0.1]
[1771911971082,1.16379853,76.543,76.52,5.24380315]
[1771911971381,0.5,76.55,76.53,5.24380315]
[1771911971583,0.5,76.55,76.531,13.06660046]
[1771911972497,13.06035939,76.568,76.532,0.47029238]
[1771911973483,13.06035939,76.568,76.533,13.06625899]
[1771911973684,13.06035939,76.568,76.534,0.47029238]
[1771911974187,13.06035939,76.568,76.54,5.71409553]
[1771911974401,13.06035939,76.568,76.541,0.47029238]
[1771911974587,0.4919926,76.567,76.541,0.47029238]
[1771911975699,0.4919926,76.567,76.541,13.53503181]
[1771911976084,0.4919926,76.567,76.542,0.47029238]
[1771911976279,0.4919926,76.567,76.541,45.72697274]
[1771911976280,0.4919926,76.573,76.551,0.47029238]
[1771911978502,0.46979523,76.579,76.553,0.47790574]
[1771911979290,5.24380315,76.6,76.561,0.47790574]
[1771911979491,5.24380315,76.59,76.561,0.47790574]
[1771911979787,5.24380315,76.59,76.553,0.47790574]
[1771911980007,5.24380315,76.59,76.561,0.47790574]
[1771911980302,45.82631438,76.613,76.561,0.47790574]
[1771911980303,5.24380315,76.6,76.561,0.47790574]
[1771911981106,13.05500071,76.599,76.563,0.47790574]
[1771911981407,0.46979523,76.598,76.563,0.47790574]
[1771911981909,0.46979523,76.598,76.571,0.47790574]
[1771911984504,0.476804,76.596,76.571,0.47790574]
[1771911985599,0.476804,76.596,76.572,0.46005051]
[1771911986007,5.24380315,76.6,76.571,13.05964715]
[1771911986008,0.476804,76.615,76.581,0.46005051]
[1771911986790,0.476804,76.615,76.583,0.46005051]
[1771911986993,0.476804,76.615,76.591,0.46005051]
[1771911987894,0.2,76.62,76.6,5.24380315]
[1771911988188,5.44380315,76.64,76.6,5.24380315]
[1771911988189,0.476804,76.638,76.601,0.46005051]
[1771911988404,0.476804,76.629,76.601,0.46005051]
[1771911988710,0.476804,76.629,76.602,13.05448943]
[1771911988911,0.476804,76.629,76.603,0.46005051]
[1771911989211,0.476804,76.639,76.611,0.46005051]
[1771911989387,0.2,76.64,76.611,0.46005051]
[1771911989587,0.476804,76.639,76.611,0.46005051]
[1771911991493,0.476804,76.639,76.613,0.46005051]
[1771911991694,0.476804,76.619,76.59,5.24380315]
[1771911991904,0.476804,76.619,76.588,33.10221873]
[1771911992198,0.476804,76.619,76.591,0.46005051]
[1771911992510,0.476804,76.599,76.578,13.05858079]
[1771911992914,0.476804,76.609,76.581,0.46005051]
[1771911993092,13.05159294,76.619,76.591,0.46005051]
[1771911993292,0.476804,76.63,76.601,0.46005051]
[1771911993489,0.476804,76.628,76.601,0.46005051]
[1771911993689,0.476804,76.619,76.582,13.05789872]
[1771911993895,0.476804,76.609,76.582,13.05789872]
[1771911994102,0.476804,76.609,76.583,0.46005051]
[1771911994298,0.476804,76.619,76.591,0.46005051]
[1771911995812,0.476804,76.619,76.592,13.05619385]
[1771911997018,0.476804,76.619,76.601,0.2]
[1771911998000,0.476804,76.619,76.611,0.2]
[1771911998200,0.476804,76.619,76.602,13.0543237]
[1771911999529,0.476804,76.629,76.602,13.0543237]
[1771911999707,0.476804,76.629,76.603,0.46005051]
[1771912000507,0.476804,76.628,76.604,13.51419911]
[1771912000705,0.476804,76.628,76.605,0.46005051]
[1771912001720,0.2,76.64,76.611,0.46005051]
[1771912002029,0.2,76.64,76.621,0.46005051]
[1771912002716,0.2,76.64,76.622,13.05108193]
[1771912002919,0.2,76.64,76.623,0.46005051]
[1771912003225,5.4416461,76.65,76.622,13.05108193]
[1771912003413,0.2,76.65,76.623,0.46005051]
[1771912005041,0.2,76.65,76.631,0.46005051]
[1771912006910,0.2,76.65,76.632,13.04937884]
[1771912007113,0.2,76.65,76.632,13.50942935]
[1771912007415,0.2,76.65,76.633,0.46005051]
[1771912009227,0.2,76.65,76.635,0.48535104]
[1771912010413,1e-08,76.65,76.635,0.48535104]
[1771912010931,0.67717495,76.66,76.635,0.48535104]
[1771912011346,0.47717495,76.659,76.636,13.53404877]
[1771912012250,0.47717495,76.659,76.637,0.48535104]
[1771912013840,0.47717495,76.659,76.638,13.04835721]
[1771912014134,0.47717495,76.659,76.639,0.48535104]
[1771912014716,0.2,76.66,76.639,0.48535104]
[1771912015046,0.2,76.66,76.638,45.66925023]
[1771912015047,0.2,76.67,76.651,0.48535104]
[1771912015413,0.67717495,76.67,76.651,0.48535104]
[1771912015620,0.47717495,76.669,76.651,0.48535104]
[1771912015824,0.47717495,76.669,76.651,13.04614421]
[1771912018718,0.47717495,76.669,76.646,13.53234631]
[1771912018920,0.47717495,76.669,76.65,5.2416461]
[1771912019926,0.47717495,76.669,76.647,0.48535104]
[1771912020121,0.47717495,76.669,76.65,5.2416461]
[1771912020329,0.47717495,76.669,76.651,0.48535104]
[1771912020643,0.47717495,76.693,76.664,0.48535104]
[1771912020814,0.47717495,76.693,76.64,57.43360241]
[1771912020815,0.47717495,76.693,76.671,0.48535104]
[1771912021420,5.4416461,76.7,76.671,0.48535104]
[1771912021421,0.47717495,76.699,76.671,0.48535104]
[1771912021634,0.47717495,76.699,76.672,0.48535104]
[1771912023042,0.47717495,76.699,76.674,0.48535104]
[1771912023737,0.2,76.7,76.673,13.04240084]
[1771912023738,0.2,76.7,76.681,0.48535104]
[1771912025331,0.2,76.7,76.683,0.48535104]
[1771912025638,0.2,76.7,76.682,13.04087008]
[1771912025639,0.2,76.71,76.691,0.48535104]
[1771912025941,0.2,76.71,76.684,0.2]
[1771912025942,5.2416461,76.7,76.684,0.2]
[1771912026128,0.47717495,76.699,76.674,13.24209399]
[1771912026439,0.47717495,76.699,76.67,13.04278808]
[1771912026639,5.2416461,76.68,76.65,5.2416461]
[1771912026832,5.2416461,76.67,76.646,13.04699527]
[1771912027844,13.04308129,76.669,76.639,0.48535104]
[1771912028037,13.04308129,76.669,76.64,18.28951525]
[1771912028240,18.2846972,76.67,76.641,0.48535104]
[1771912028438,5.2416461,76.67,76.641,0.48535104]
[1771912028643,0.47717495,76.679,76.641,0.48535104]
[1771912029143,0.47717495,76.679,76.651,0.48535104]
[1771912029355,0.47717495,76.677,76.645,0.48535104]
[1771912029644,0.26041061,76.669,76.64,5.72699714]
[1771912029843,0.26041061,76.669,76.641,13.04784645]
[1771912030030,5.2416461,76.66,76.633,0.48535104]
[1771912030945,32.59957048,76.689,76.641,0.48535104]
[1771912031146,5.2416461,76.67,76.641,0.48535104]
[1771912031326,0.28432314,76.691,76.643,0.48535104]
[1771912031646,0.47717495,76.669,76.643,0.48535104]
[1771912033638,0.47717495,76.669,76.645,0.48535104]
[1771912034646,5.2416461,76.68,76.645,0.48535104]
[1771912034834,0.47717495,76.679,76.645,0.48535104]
[1771912035043,0.47717495,76.679,76.651,0.48535104]
[1771912035532,13.51855524,76.679,76.652,13.04597401]
[1771912035733,0.47717495,76.678,76.653,0.48535104]
[1771912036339,13.04138029,76.679,76.644,32.61833933]
[1771912036340,0.47717495,76.669,76.648,13.04661567]
[1771912036748,0.47717495,76.669,76.641,13.04768421]
[1771912036932,0.47717495,76.659,76.641,13.04768421]
[1771912037433,0.47717495,76.659,76.637,13.04849927]
[1771912041063,0.45416118,76.649,76.622,0.49318903]
[1771912042539,0.45416118,76.649,76.624,0.48971655]
[1771912043549,0.45276336,76.647,76.623,13.0509116]
[1771912043950,0.45276336,76.647,76.624,0.48971655]
[1771912045855,5.2416461,76.65,76.626,0.48971655]
[1771912046056,0.45276336,76.656,76.626,0.48971655]
[1771912047457,0.45276336,76.649,76.626,0.48971655]
[1771912047660,0.45276336,76.649,76.62,13.05138289]
[1771912047856,0.45276336,76.629,76.607,13.05363739]
[1771912048044,0.45276336,76.619,76.592,0.48971655]
[1771912048249,0.45276336,76.609,76.591,13.05636432]
[1771912049742,0.45276336,76.599,76.563,0.48971655]
[1771912049941,0.45276336,76.599,76.56,5.4416461]
[1771912049942,5.2416461,76.58,76.56,0.2]
[1771912050236,0.45276336,76.579,76.56,0.2]
[1771912050436,0.45276336,76.569,76.544,0.48971655]
[1771912050862,0.45276336,76.569,76.545,13.06418504]
[1771912051157,5.2416461,76.57,76.546,0.48971655]
[1771912051360,11.72071233,76.57,76.546,0.48971655]
[1771912051855,11.72071233,76.58,76.548,0.48971655]
[1771912052067,11.72071233,76.59,76.551,0.48971655]
[1771912052259,13.05534159,76.597,76.561,0.48971655]
[1771912052464,0.42198747,76.596,76.561,0.48971655]
[1771912052962,11.72071233,76.59,76.561,0.48971655]
[1771912053454,11.72071233,76.6,76.561,0.48971655]
[1771912053847,0.42198747,76.599,76.561,0.48971655]
[1771912054846,11.72071233,76.59,76.563,0.48971655]
[1771912055464,65.24539969,76.634,76.563,0.48971655]
[1771912055465,11.72071233,76.6,76.563,0.48971655]
[1771912055963,11.72071233,76.6,76.571,0.48971655]
[1771912056557,0.2,76.59,76.571,0.48971655]
[1771912057747,0.2,76.59,76.573,0.48971655]
[1771912058466,0.2,76.59,76.572,13.05960403]
[1771912058467,0.42198747,76.589,76.572,12.85960403]
[1771912059563,0.42198747,76.589,76.566,0.48971655]
[1771912059564,0.42198747,76.589,76.567,13.06045685]
[1771912060167,0.2,76.59,76.568,0.48971655]
[1771912061256,11.70969029,76.61,76.571,0.48971655]
[1771912061572,12.13167776,76.61,76.571,0.48971655]
[1771912062164,0.42198747,76.617,76.581,0.48971655]
[1771912062472,13.04988972,76.629,76.591,0.48971655]
[1771912062856,13.47187719,76.629,76.591,0.48971655]
[1771912063056,0.42198747,76.628,76.591,0.48971655]
[1771912064580,13.4722178,76.627,76.593,0.48971655]
[1771912066666,0.42198747,76.626,76.595,0.48971655]
[1771912070377,0.42198747,76.619,76.589,0.4677586]
[1771912070783,0.42198747,76.609,76.589,0.4677586]
[1771912071379,0.42198747,76.599,76.588,0.2]
[1771912071574,0.42198747,76.599,76.577,13.05869162]
[1771912071779,0.42198747,76.599,76.579,13.05841026]
[1771912071976,0.42198747,76.609,76.58,0.4677586]
[1771912073288,0.42198747,76.607,76.581,13.05806923]
[1771912074882,0.42198747,76.607,76.582,0.4677586]
[1771912075380,0.42198747,76.607,76.583,13.05772821]
[1771912075588,0.42198747,76.607,76.584,0.4677586]
[1771912076274,0.42198747,76.635,76.584,0.4677586]
[1771912076479,0.42198747,76.609,76.584,0.4677586]
[1771912077587,5.24614353,76.62,76.591,0.4677586]
[1771912077790,0.42198747,76.623,76.591,0.4677586]
[1771912078086,13.05108193,76.622,76.591,0.4677586]
[1771912078590,0.42198747,76.609,76.586,0.4677586]
[1771912080488,0.42198747,76.615,76.588,0.4677586]
[1771912081070,0.42198747,76.609,76.588,0.4677586]
[1771912081792,5.24614353,76.61,76.588,0.4677586]
[1771912081986,13.0516231,76.619,76.588,0.4677586]
[1771912082194,5.24614353,76.62,76.591,0.4677586]
[1771912082386,5.24614353,76.62,76.593,0.4677586]
[1771912082789,13.05091252,76.623,76.593,0.4677586]
[1771912084999,0.42198747,76.623,76.595,0.4677586]
[1771912085684,0.42198747,76.619,76.595,0.4677586]
[1771912087094,13.47375076,76.618,76.595,0.4677586]
[1771912087271,0.42198747,76.617,76.595,0.4677586]
[1771912090295,0.42198747,76.617,76.594,13.05585293]
[1771912090296,0.42198747,76.617,76.597,0.4677586]
[1771912092090,0.42198747,76.617,76.592,13.05608727]
[1771912092293,0.42198747,76.609,76.592,13.05608727]
[1771912092505,5.668131,76.6,76.578,0.4677586]
[1771912092683,0.42198747,76.599,76.578,0.4677586]
[1771912095880,13.05006003,76.628,76.579,45.70443593]
[1771912096098,0.42198747,76.627,76.591,0.4677586]
[1771912096483,0.42198747,76.627,76.601,0.4677586]
[1771912096907,13.33251009,76.639,76.601,0.4677586]
[1771912097288,13.75449756,76.639,76.601,0.4677586]
[1771912097485,0.42198747,76.638,76.601,0.4677586]
[1771912098499,0.42198747,76.636,76.603,0.46540912]
[1771912098703,0.42198747,76.629,76.603,0.46540912]
[1771912098903,0.42198747,76.629,76.598,13.05505225]
[1771912099206,5.668131,76.62,76.598,13.05505225]
[1771912100215,0.42198747,76.619,76.598,13.05505225]
[1771912100508,0.42198747,76.632,76.601,0.46540912]
[1771912100691,0.42198747,76.629,76.601,0.46540912]
[1771912101492,13.47198599,76.629,76.602,13.05448943]
[1771912101695,0.42198747,76.628,76.602,13.05448943]
[1771912101898,0.42198747,76.628,76.601,0.46540912]
[1771912102283,5.668131,76.61,76.579,0.46540912]
[1771912102490,5.668131,76.61,76.584,0.46583599]
[1771912103114,13.04835721,76.638,76.6,5.24614353]
[1771912103412,0.42198747,76.637,76.601,0.46583599]
[1771912103609,0.42198747,76.635,76.603,0.46583599]
[1771912103998,0.28432314,76.649,76.611,0.46583599]
[1771912104198,0.42198747,76.649,76.611,0.46583599]
[1771912105111,0.42198747,76.648,76.613,0.46583599]
[1771912106801,5.24614353,76.65,76.621,0.46583599]
[1771912106991,13.0458365,76.653,76.621,0.46583599]
[1771912109594,0.42198747,76.667,76.631,0.46583599]
[1771912110318,0.42198747,76.667,76.622,45.67878676]
[1771912110319,0.42198747,76.679,76.641,0.46583599]
[1771912111521,0.42198747,76.679,76.642,13.0476762]
[1771912111716,0.42198747,76.677,76.643,0.46583599]
[1771912112515,5.24614353,76.67,76.643,0.46583599]
[1771912113215,0.42198747,76.692,76.661,0.46583599]
[1771912113402,5.668131,76.69,76.661,0.46583599]
[1771912113609,0.42198747,76.679,76.653,0.46583599]
[1771912116098,5.24614353,76.69,76.655,0.46583599]
[1771912116298,0.42198747,76.692,76.661,0.46583599]
[1771912117120,0.42198747,76.699,76.661,0.46583599]
[1771912117321,0.1,76.7,76.671,0.46583599]
[1771912117634,5.668131,76.69,76.665,0.46583599]
[1771912117925,0.42198747,76.689,76.665,0.46583599]
[1771912118304,0.42198747,76.689,76.666,13.50942767]
[1771912118705,0.42198747,76.689,76.667,0.46583599]
[1771912119507,13.03984978,76.688,76.66,13.04449058]
[1771912119706,0.21364087,76.679,76.65,0.46583599]
[1771912119906,0.21364087,76.679,76.65,5.24614353]
[1771912120123,0.21364087,76.679,76.651,0.46583599]
[1771912120324,0.21364087,76.679,76.652,13.04597401]
[1771912120623,0.21364087,76.679,76.653,0.46583599]
[1771912121227,0.21364087,76.688,76.661,0.46583599]
[1771912121424,5.23431395,76.68,76.661,0.46583599]
[1771912121628,0.21364087,76.682,76.661,0.46583599]
[1771912122133,5.23431395,76.69,76.661,0.46583599]
[1771912122309,0.21364087,76.689,76.661,0.46583599]
[1771912122510,0.21364087,76.687,76.662,13.04427226]
[1771912122927,0.21364087,76.687,76.662,13.51010825]
[1771912123909,37.92911036,76.7,76.681,0.46583599]
[1771912123910,0.1,76.7,76.681,0.46583599]
[1771912124122,32.58280527,76.728,76.691,0.46583599]
[1771912124123,0.21364087,76.722,76.691,0.46583599]
[1771912124314,13.03448785,76.72,76.691,0.46583599]
[1771912124718,13.03448785,76.72,76.693,0.46583599]
[1771912125127,13.03363442,76.725,76.701,0.46583599]
[1771912125327,0.1,76.73,76.701,0.46583599]
[1771912125636,0.1,76.73,76.71,0.46583599]
[1771912126230,0.21364087,76.728,76.702,0.46583599]
[1771912126436,0.21364087,76.728,76.694,0.46583599]
[1771912126928,0.21364087,76.726,76.694,0.46583599]
[1771912127122,0.1,76.73,76.7,5.23431395]
[1771912127325,0.31364087,76.73,76.701,0.46583599]
[1771912127712,0.21364087,76.729,76.701,0.46583599]
[1771912128534,0.21364087,76.729,76.7,5.23431395]
[1771912128535,0.21364087,76.729,76.703,0.47764928]
[1771912128914,0.1,76.73,76.711,0.47764928]
[1771912129131,0.1,76.73,76.72,5.23431395]
[1771912129441,0.1,76.73,76.711,0.47764928]
[1771912130022,0.21364087,76.754,76.72,5.23431395]
[1771912130217,0.21364087,76.749,76.72,5.23431395]
[1771912130418,0.21364087,76.738,76.702,13.03746968]
[1771912130627,0.21364087,76.736,76.704,13.03712974]
[1771912130935,0.21364087,76.736,76.68,8.92814797]
[1771912130936,0.21364087,76.729,76.697,0.47764928]
[1771912131118,0.21364087,76.729,76.698,13.03814962]
[1771912131435,0.21364087,76.729,76.699,0.48387606]
[1771912131951,5.23431395,76.72,76.699,0.48387606]
[1771912135132,5.23431395,76.72,76.7,13.03780964]
[1771912135333,5.23431395,76.72,76.67,3.69383402]
[1771912135334,5.23431395,76.71,76.681,0.48387606]
[1771912136535,0.21364087,76.712,76.683,0.48387606]
[1771912136840,5.23431395,76.71,76.683,0.48387606]
[1771912140639,0.21364087,76.709,76.68,5.23431395]
[1771912140939,0.21364087,76.699,76.678,0.48387606]
[1771912141124,0.21364087,76.699,76.673,13.04230797]